[Event "Early-Titled-Tuesday-Blitz-January-23-2024"]
[Site "Chess.com"]
[Date "2024.01.23"]
[Round "8"]
[White "Sychev_Klementy"]
[Black "TigrVShlyape"]
[Result "0-1"]
[WhiteElo "2789"]
[BlackElo "2946"]
[TimeControl "180+1"]
[EndTime "9:28:42 PST"]
[Termination "TigrVShlyape won on time"]

1. e4 {[%clk 0:03:00.9]} 1... c5 {[%clk 0:02:59.4]} 2. Nf3 {[%clk 0:02:59.2]}
2... e6 {[%clk 0:02:59]} 3. d4 {[%clk 0:02:52.5]} 3... cxd4 {[%clk 0:02:59]} 4.
Nxd4 {[%clk 0:02:51.9]} 4... a6 {[%clk 0:02:58.8]} 5. Bd3 {[%clk 0:02:51.4]}
5... Bc5 {[%clk 0:02:57.8]} 6. Nb3 {[%clk 0:02:51.6]} 6... Ba7 {[%clk
0:02:58.1]} 7. Qg4 {[%clk 0:02:49.8]} 7... Nf6 {[%clk 0:02:57.4]} 8. Qg3 {[%clk
0:02:50.2]} 8... d6 {[%clk 0:02:57.5]} 9. Nc3 {[%clk 0:02:49.7]} 9... Nc6 {[%clk
0:02:37]} 10. Bg5 {[%clk 0:02:49.6]} 10... h6 {[%clk 0:02:30.2]} 11. Bd2 {[%clk
0:02:49.3]} 11... Nh5 {[%clk 0:02:21.8]} 12. Qf3 {[%clk 0:02:45.5]} 12... Qh4
{[%clk 0:02:14.7]} 13. g3 {[%clk 0:02:40.6]} 13... Ne5 {[%clk 0:02:13.5]} 14.
Qe2 {[%clk 0:02:38.8]} 14... Qg4 {[%clk 0:02:13.5]} 15. O-O-O {[%clk 0:02:39]}
15... Qxe2 {[%clk 0:02:04.3]} 16. Bxe2 {[%clk 0:02:39.9]} 16... Nf6 {[%clk
0:02:04.3]} 17. f4 {[%clk 0:02:36.4]} 17... Nc6 {[%clk 0:02:03.8]} 18. Bf3
{[%clk 0:02:30.1]} 18... e5 {[%clk 0:02:01.7]} 19. Nd5 {[%clk 0:02:18.1]} 19...
O-O {[%clk 0:01:21.9]} 20. Bc3 {[%clk 0:01:51.3]} 20... Ng4 {[%clk 0:01:05]} 21.
Rd2 {[%clk 0:01:41.8]} 21... Rd8 {[%clk 0:00:55.2]} 22. h3 {[%clk 0:01:28.5]}
22... Ne3 {[%clk 0:00:54.6]} 23. Re1 {[%clk 0:01:27.9]} 23... Nc4 {[%clk
0:00:53.4]} 24. Rh2 {[%clk 0:01:22.5]} 24... b5 {[%clk 0:00:53]} 25. Nd2 {[%clk
0:01:09.2]} 25... Nb6 {[%clk 0:00:46.3]} 26. b3 {[%clk 0:00:58.5]} 26... Bb7
{[%clk 0:00:37.7]} 27. Nf1 {[%clk 0:00:51.9]} 27... Nxd5 {[%clk 0:00:36.2]} 28.
exd5 {[%clk 0:00:48.1]} 28... Nd4 {[%clk 0:00:36.8]} 29. Bh1 {[%clk 0:00:45]}
29... Rac8 {[%clk 0:00:36.6]} 30. Ba5 {[%clk 0:00:44.5]} 30... Re8 {[%clk
0:00:34.2]} 31. fxe5 {[%clk 0:00:36.8]} 31... dxe5 {[%clk 0:00:22.5]} 32. Ne3
{[%clk 0:00:16.8]} 32... e4 {[%clk 0:00:20.7]} 33. d6 {[%clk 0:00:10.3]} 33...
Bc6 {[%clk 0:00:20.7]} 34. Rd2 {[%clk 0:00:10.5]} 34... Nf3 {[%clk 0:00:18.9]}
35. d7 {[%clk 0:00:06.8]} 35... Nxe1 {[%clk 0:00:18.4]} 36. dxc8=Q {[%clk
0:00:06.3]} 36... Rxc8 {[%clk 0:00:18.3]} 37. Nf5 {[%clk 0:00:06.8]} 37... Bc5
{[%clk 0:00:17.3]} 38. Bb6 {[%clk 0:00:03.4]} 38... Ba3+ {[%clk 0:00:16.8]} 39.
Kb1 {[%clk 0:00:03.4]} 39... Nf3 {[%clk 0:00:17.1]} 40. Rd1 {[%clk 0:00:03.1]}
40... Kh7 {[%clk 0:00:16.2]} 41. Be3 {[%clk 0:00:03.2]} 41... h5 {[%clk
0:00:14.6]} 42. Bg2 {[%clk 0:00:03.5]} 42... g6 {[%clk 0:00:14.4]} 43. Nd4
{[%clk 0:00:03.2]} 43... Rd8 {[%clk 0:00:13.7]} 44. c3 {[%clk 0:00:03.7]} 44...
Bc5 {[%clk 0:00:12.4]} 45. Kc2 {[%clk 0:00:02.9]} 45... Nxd4+ {[%clk 0:00:12.7]}
46. cxd4 {[%clk 0:00:02.9]} 46... Ba3 {[%clk 0:00:12]} 47. g4 {[%clk 0:00:03.3]}
47... hxg4 {[%clk 0:00:11.6]} 48. hxg4 {[%clk 0:00:04.2]} 48... Bd5 {[%clk
0:00:12]} 49. Rh1+ {[%clk 0:00:04.1]} 49... Kg7 {[%clk 0:00:12.1]} 50. Bh6+
{[%clk 0:00:04.4]} 50... Kf6 {[%clk 0:00:11.7]} 51. Rf1+ {[%clk 0:00:04]} 51...
Ke6 {[%clk 0:00:11.7]} 52. Be3 {[%clk 0:00:02.2]} 52... Rc8+ {[%clk 0:00:11.7]}
53. Kd1 {[%clk 0:00:02.7]} 53... Rc3 {[%clk 0:00:11.5]} 54. Kd2 {[%clk
0:00:02.3]} 54... Bb4 {[%clk 0:00:11.7]} 55. Ke2 {[%clk 0:00:01.9]} 55... Rc2+
{[%clk 0:00:12]} 0-1

[Event "Early-Titled-Tuesday-Blitz-January-23-2024"]
[Site "Chess.com"]
[Date "2024.01.23"]
[Round "8"]
[White "Alexei_Kornev"]
[Black "BilodeauA"]
[Result "0-1"]
[WhiteElo "2739"]
[BlackElo "2935"]
[TimeControl "180+1"]
[EndTime "9:28:43 PST"]
[Termination "BilodeauA won by resignation"]

1. e4 {[%clk 0:03:00.9]} 1... c5 {[%clk 0:02:59.7]} 2. Nf3 {[%clk 0:03:00.3]}
2... d6 {[%clk 0:02:59.6]} 3. d4 {[%clk 0:03:00.3]} 3... cxd4 {[%clk 0:02:59.9]}
4. Nxd4 {[%clk 0:03:01.2]} 4... Nf6 {[%clk 0:02:58.4]} 5. Nc3 {[%clk 0:03:01.7]}
5... Bd7 {[%clk 0:02:58.9]} 6. Bg5 {[%clk 0:02:55.7]} 6... e6 {[%clk 0:02:58.9]}
7. Qd2 {[%clk 0:02:50.7]} 7... a6 {[%clk 0:02:58.9]} 8. O-O-O {[%clk 0:02:50.1]}
8... h6 {[%clk 0:02:58.6]} 9. Bxf6 {[%clk 0:02:42.7]} 9... Qxf6 {[%clk
0:02:58.6]} 10. f4 {[%clk 0:02:42.8]} 10... Qd8 {[%clk 0:02:56.8]} 11. Kb1
{[%clk 0:02:41.4]} 11... Nc6 {[%clk 0:02:51.1]} 12. f5 {[%clk 0:02:41.4]} 12...
Qb6 {[%clk 0:02:47.1]} 13. Nb3 {[%clk 0:02:37.6]} 13... O-O-O {[%clk 0:02:42.6]}
14. Be2 {[%clk 0:02:36.9]} 14... Be7 {[%clk 0:02:41.7]} 15. Rhf1 {[%clk
0:02:36.6]} 15... Ne5 {[%clk 0:02:41.1]} 16. Qe1 {[%clk 0:02:20.3]} 16... Kb8
{[%clk 0:02:38.6]} 17. Qg3 {[%clk 0:02:17.6]} 17... Bf6 {[%clk 0:02:37.3]} 18.
Rd2 {[%clk 0:02:14.6]} 18... Bc6 {[%clk 0:02:34.1]} 19. Rfd1 {[%clk 0:02:14]}
19... Qc7 {[%clk 0:02:21.2]} 20. Nd4 {[%clk 0:02:12.3]} 20... Rhe8 {[%clk
0:02:21.5]} 21. h4 {[%clk 0:01:59.3]} 21... Bd7 {[%clk 0:02:14.1]} 22. Qf2
{[%clk 0:01:55.3]} 22... Bc8 {[%clk 0:02:11.9]} 23. g3 {[%clk 0:01:54.5]} 23...
Nc4 {[%clk 0:02:04.4]} 24. Bxc4 {[%clk 0:01:53.6]} 24... Qxc4 {[%clk 0:02:05.3]}
25. Nde2 {[%clk 0:01:46.3]} 25... Be5 {[%clk 0:01:59.2]} 26. Rd3 {[%clk
0:01:38.6]} 26... Re7 {[%clk 0:01:58]} 27. Nd4 {[%clk 0:01:32.7]} 27... Qc5
{[%clk 0:01:43.6]} 28. g4 {[%clk 0:01:28]} 28... Rc7 {[%clk 0:01:38.4]} 29. Qe2
{[%clk 0:01:26.2]} 29... Bf6 {[%clk 0:01:34.8]} 30. Qe1 {[%clk 0:01:19.3]} 30...
b5 {[%clk 0:01:34]} 31. a3 {[%clk 0:01:15.6]} 31... Ka8 {[%clk 0:01:19.1]} 32.
Nf3 {[%clk 0:01:06.4]} 32... b4 {[%clk 0:00:56.9]} 33. axb4 {[%clk 0:01:04.8]}
33... Qxb4 {[%clk 0:00:57.8]} 34. e5 {[%clk 0:01:04]} 34... Be7 {[%clk
0:00:58.3]} 35. Qd2 {[%clk 0:00:50.3]} 35... d5 {[%clk 0:00:52.1]} 36. Nd4
{[%clk 0:00:49.8]} 36... Bd7 {[%clk 0:00:47.7]} 37. g5 {[%clk 0:00:44.9]} 37...
hxg5 {[%clk 0:00:46.9]} 38. hxg5 {[%clk 0:00:45.8]} 38... Rb8 {[%clk 0:00:47.2]}
39. b3 {[%clk 0:00:44.9]} 39... Qa5 {[%clk 0:00:42.3]} 40. g6 {[%clk 0:00:44.6]}
40... Bb4 {[%clk 0:00:39.6]} 41. Nde2 {[%clk 0:00:39.7]} 41... fxg6 {[%clk
0:00:36.8]} 42. fxe6 {[%clk 0:00:37.6]} 42... Bxe6 {[%clk 0:00:37.2]} 43. Qe3
{[%clk 0:00:35.1]} 43... d4 {[%clk 0:00:21.2]} 44. Qxd4 {[%clk 0:00:33.4]} 44...
Bc5 {[%clk 0:00:13.1]} 45. Qa4 {[%clk 0:00:33.5]} 45... Qxa4 {[%clk 0:00:05]}
46. Nxa4 {[%clk 0:00:34.4]} 46... Ba7 {[%clk 0:00:05.6]} 47. Rd6 {[%clk
0:00:34.3]} 47... Bf5 {[%clk 0:00:05.9]} 48. Nec3 {[%clk 0:00:30.8]} 48... Rxb3+
{[%clk 0:00:05.6]} 49. Ka2 {[%clk 0:00:29.5]} 49... Rbxc3 {[%clk 0:00:06.2]} 50.
Nxc3 {[%clk 0:00:28.5]} 50... Rxc3 {[%clk 0:00:07.1]} 51. Rxa6 {[%clk
0:00:28.2]} 51... Kb7 {[%clk 0:00:06]} 52. Ra3 {[%clk 0:00:25.9]} 52... Rxc2+
{[%clk 0:00:06]} 53. Ka1 {[%clk 0:00:26]} 53... Rc6 {[%clk 0:00:06.8]} 54. Rd6
{[%clk 0:00:25]} 54... Rxd6 {[%clk 0:00:06.1]} 55. exd6 {[%clk 0:00:25.9]} 55...
Bc5 {[%clk 0:00:06.8]} 56. Rb3+ {[%clk 0:00:18.8]} 56... Kc6 {[%clk 0:00:07.2]}
0-1

[Event "Early-Titled-Tuesday-Blitz-January-23-2024"]
[Site "Chess.com"]
[Date "2024.01.23"]
[Round "8"]
[White "Kunalm64"]
[Black "giomar27"]
[Result "1/2-1/2"]
[WhiteElo "2580"]
[BlackElo "2426"]
[TimeControl "180+1"]
[EndTime "9:28:43 PST"]
[Termination "Game drawn by repetition"]

1. e4 {[%clk 0:03:00.7]} 1... g6 {[%clk 0:02:58.7]} 2. d4 {[%clk 0:03:00]} 2...
Bg7 {[%clk 0:02:59.6]} 3. Nf3 {[%clk 0:02:59.1]} 3... a6 {[%clk 0:02:59.3]} 4.
a4 {[%clk 0:02:58.5]} 4... d6 {[%clk 0:02:59.4]} 5. Bc4 {[%clk 0:02:58.1]} 5...
e6 {[%clk 0:02:59.1]} 6. Qe2 {[%clk 0:02:55.1]} 6... Nd7 {[%clk 0:02:58.9]} 7.
h4 {[%clk 0:02:53.9]} 7... h6 {[%clk 0:02:58.8]} 8. c3 {[%clk 0:02:32.5]} 8...
Ne7 {[%clk 0:02:57.7]} 9. Bf4 {[%clk 0:02:29.1]} 9... b6 {[%clk 0:02:57.5]} 10.
Nbd2 {[%clk 0:02:17.2]} 10... Bb7 {[%clk 0:02:57.3]} 11. b4 {[%clk 0:02:14]}
11... O-O {[%clk 0:02:57.1]} 12. Qe3 {[%clk 0:02:12.1]} 12... Kh7 {[%clk
0:02:57.2]} 13. g4 {[%clk 0:02:02.4]} 13... e5 {[%clk 0:02:40.9]} 14. dxe5
{[%clk 0:01:59.6]} 14... dxe5 {[%clk 0:02:36.4]} 15. Bg3 {[%clk 0:01:59.1]}
15... Nc8 {[%clk 0:02:31.4]} 16. O-O-O {[%clk 0:01:42.8]} 16... Qe7 {[%clk
0:02:30.7]} 17. Bb3 {[%clk 0:01:22.7]} 17... Nd6 {[%clk 0:02:29.9]} 18. g5
{[%clk 0:01:10.4]} 18... h5 {[%clk 0:02:28.1]} 19. Ne1 {[%clk 0:01:07.7]} 19...
f5 {[%clk 0:02:13.3]} 20. gxf6 {[%clk 0:01:05.4]} 20... Nxf6 {[%clk 0:02:13.5]}
21. f3 {[%clk 0:01:04.5]} 21... c5 {[%clk 0:01:56.7]} 22. Nc2 {[%clk 0:00:58.4]}
22... Rac8 {[%clk 0:01:54.3]} 23. Kb2 {[%clk 0:00:52.6]} 23... c4 {[%clk
0:01:53.6]} 24. Ba2 {[%clk 0:00:52.5]} 24... b5 {[%clk 0:01:53.2]} 25. a5 {[%clk
0:00:51.5]} 25... Nd7 {[%clk 0:01:47.9]} 26. Qe2 {[%clk 0:00:49.8]} 26... Bh6
{[%clk 0:01:44.7]} 27. Nf1 {[%clk 0:00:47.4]} 27... Bf4 {[%clk 0:01:41.8]} 28.
Bxf4 {[%clk 0:00:45.4]} 28... Rxf4 {[%clk 0:01:42.7]} 29. Nfe3 {[%clk
0:00:45.1]} 29... Rcf8 {[%clk 0:01:38.6]} 30. Rh3 {[%clk 0:00:42.8]} 30... R8f7
{[%clk 0:01:08.8]} 31. Rg1 {[%clk 0:00:39.7]} 31... Ne8 {[%clk 0:01:05.4]} 32.
Bb1 {[%clk 0:00:29.5]} 32... Nf8 {[%clk 0:01:04.6]} 33. Nd5 {[%clk 0:00:27.6]}
33... Bxd5 {[%clk 0:01:03.8]} 34. exd5 {[%clk 0:00:27.7]} 34... Nc7 {[%clk
0:00:52.8]} 35. Ne3 {[%clk 0:00:26.7]} 35... Qd6 {[%clk 0:00:47.4]} 36. Rg5
{[%clk 0:00:25.9]} 36... Kh8 {[%clk 0:00:37]} 37. Rhg3 {[%clk 0:00:24.8]} 37...
R7f6 {[%clk 0:00:36.6]} 38. Ng2 {[%clk 0:00:22.2]} 38... Nxd5 {[%clk 0:00:36.3]}
39. Nxf4 {[%clk 0:00:17.2]} 39... Nxf4 {[%clk 0:00:37]} 40. Qxe5 {[%clk
0:00:17]} 40... Qd2+ {[%clk 0:00:30.6]} 41. Ka1 {[%clk 0:00:16.8]} 41... Nd7
{[%clk 0:00:23.6]} 42. Qd4 {[%clk 0:00:11.1]} 42... Qc1 {[%clk 0:00:10.9]} 43.
Qxd7 {[%clk 0:00:08.9]} 43... Qa3+ {[%clk 0:00:11.2]} 44. Ba2 {[%clk 0:00:08.5]}
44... Qc1+ {[%clk 0:00:11.8]} 45. Bb1 {[%clk 0:00:08.4]} 45... Qxc3+ {[%clk
0:00:03.5]} 46. Ka2 {[%clk 0:00:08.5]} 46... Qb3+ {[%clk 0:00:03.9]} 47. Ka1
{[%clk 0:00:08.7]} 47... Qa3+ {[%clk 0:00:04.3]} 48. Ba2 {[%clk 0:00:08.6]}
48... Qc1+ {[%clk 0:00:05]} 49. Bb1 {[%clk 0:00:08.7]} 49... Qa3+ {[%clk
0:00:05.7]} 50. Ba2 {[%clk 0:00:08.7]} 50... Qc1+ {[%clk 0:00:06.3]} 51. Bb1
{[%clk 0:00:08.9]} 51... Qa3+ {[%clk 0:00:06.7]} 1/2-1/2

[Event "Early-Titled-Tuesday-Blitz-January-23-2024"]
[Site "Chess.com"]
[Date "2024.01.23"]
[Round "8"]
[White "Zgorl"]
[Black "eagleclaw07"]
[Result "1-0"]
[WhiteElo "2533"]
[BlackElo "2628"]
[TimeControl "180+1"]
[EndTime "9:28:45 PST"]
[Termination "Zgorl won by resignation"]

1. Nf3 {[%clk 0:03:00.9]} 1... Nf6 {[%clk 0:02:51.6]} 2. g3 {[%clk 0:02:59.6]}
2... b6 {[%clk 0:02:52.5]} 3. Bg2 {[%clk 0:02:59.2]} 3... Bb7 {[%clk 0:02:53.4]}
4. O-O {[%clk 0:02:58.5]} 4... e6 {[%clk 0:02:54.1]} 5. c4 {[%clk 0:02:58]} 5...
Be7 {[%clk 0:02:54.7]} 6. b3 {[%clk 0:02:57.8]} 6... O-O {[%clk 0:02:55.5]} 7.
Nc3 {[%clk 0:02:57.6]} 7... d5 {[%clk 0:02:55.6]} 8. d4 {[%clk 0:02:57.1]} 8...
Nbd7 {[%clk 0:02:55.6]} 9. Bb2 {[%clk 0:02:56.4]} 9... c5 {[%clk 0:02:50.9]} 10.
Ne1 {[%clk 0:02:55.1]} 10... cxd4 {[%clk 0:02:50.4]} 11. Qxd4 {[%clk 0:02:53.2]}
11... Bc5 {[%clk 0:02:46.5]} 12. Qh4 {[%clk 0:02:51]} 12... Rb8 {[%clk
0:02:31.9]} 13. cxd5 {[%clk 0:02:48.1]} 13... exd5 {[%clk 0:02:29.7]} 14. Rd1
{[%clk 0:02:44]} 14... d4 {[%clk 0:02:22.7]} 15. Na4 {[%clk 0:02:39.6]} 15...
Bxg2 {[%clk 0:02:18.2]} 16. Nxg2 {[%clk 0:02:40.5]} 16... Re8 {[%clk 0:02:15.9]}
17. Nxc5 {[%clk 0:02:36.8]} 17... bxc5 {[%clk 0:02:15.9]} 18. e3 {[%clk
0:02:26]} 18... Ne5 {[%clk 0:02:12.6]} 19. f4 {[%clk 0:02:21.5]} 19... Ng6
{[%clk 0:02:12.1]} 20. Qg5 {[%clk 0:02:06.5]} 20... c4 {[%clk 0:01:55.4]} 21.
Rxd4 {[%clk 0:02:00.2]} 21... Qb6 {[%clk 0:01:55.2]} 22. Rxc4 {[%clk 0:01:57.1]}
22... Ne4 {[%clk 0:01:46.8]} 23. Qf5 {[%clk 0:01:24.9]} 23... Nd2 {[%clk
0:01:42.5]} 24. Rfc1 {[%clk 0:01:20]} 24... Nxc4 {[%clk 0:01:38.6]} 25. Rxc4
{[%clk 0:01:20.9]} 25... Qa6 {[%clk 0:01:21.3]} 26. Qc2 {[%clk 0:00:34.4]} 26...
Qxa2 {[%clk 0:01:10.4]} 27. Qc3 {[%clk 0:00:33.7]} 27... Ne5 {[%clk 0:01:02.3]}
28. fxe5 {[%clk 0:00:19.3]} 28... Rxb3 {[%clk 0:00:55.6]} 29. Rc8 {[%clk
0:00:18.8]} 29... Rb8 {[%clk 0:00:47.1]} 30. Rxe8+ {[%clk 0:00:17.9]} 30... Rxe8
{[%clk 0:00:47.1]} 31. Nf4 {[%clk 0:00:14.4]} 31... Qb1+ {[%clk 0:00:44.3]} 32.
Kg2 {[%clk 0:00:14.1]} 32... Qe4+ {[%clk 0:00:44.6]} 33. Kh3 {[%clk 0:00:14.5]}
33... Qf5+ {[%clk 0:00:44.6]} 34. g4 {[%clk 0:00:14.8]} 34... Qc8 {[%clk
0:00:44.4]} 35. Qd4 {[%clk 0:00:14.1]} 35... a5 {[%clk 0:00:28.6]} 36. e6 {[%clk
0:00:13.1]} 36... f6 {[%clk 0:00:28.9]} 37. g5 {[%clk 0:00:13.2]} 37... Rd8
{[%clk 0:00:18.9]} 38. Qe4 {[%clk 0:00:10]} 38... fxg5 {[%clk 0:00:17.9]} 39.
Nh5 {[%clk 0:00:10.3]} 39... Qa8 {[%clk 0:00:13.8]} 40. Qxa8 {[%clk 0:00:06.1]}
40... Rxa8 {[%clk 0:00:14.7]} 41. Nxg7 {[%clk 0:00:05.6]} 41... Ra7 {[%clk
0:00:15.1]} 42. Nf5 {[%clk 0:00:05.3]} 42... a4 {[%clk 0:00:15.5]} 43. Ba3
{[%clk 0:00:05.3]} 43... Ra6 {[%clk 0:00:12.9]} 44. e7 {[%clk 0:00:05.7]} 44...
Kf7 {[%clk 0:00:13.1]} 45. Ng7 {[%clk 0:00:04.3]} 45... Ra8 {[%clk 0:00:12.9]}
46. e8=Q+ {[%clk 0:00:04.7]} 46... Rxe8 {[%clk 0:00:13.5]} 47. Nxe8 {[%clk
0:00:05.6]} 47... Kxe8 {[%clk 0:00:14.4]} 48. Kg4 {[%clk 0:00:05.7]} 48... h6
{[%clk 0:00:13.4]} 49. Kh5 {[%clk 0:00:05.8]} 49... Kf7 {[%clk 0:00:14.1]} 50.
Kxh6 {[%clk 0:00:06.3]} 50... Kf6 {[%clk 0:00:14.8]} 51. Kh5 {[%clk 0:00:06.7]}
51... Kf5 {[%clk 0:00:15.4]} 52. h3 {[%clk 0:00:06.8]} 52... Ke4 {[%clk
0:00:15.2]} 53. Kxg5 {[%clk 0:00:07]} 53... Kxe3 {[%clk 0:00:15.9]} 54. h4
{[%clk 0:00:07.6]} 54... Kd3 {[%clk 0:00:16.7]} 55. h5 {[%clk 0:00:08.2]} 55...
Kc3 {[%clk 0:00:17.6]} 56. Be7 {[%clk 0:00:08.2]} 56... Kb3 {[%clk 0:00:18.5]}
57. h6 {[%clk 0:00:08.6]} 57... a3 {[%clk 0:00:18.4]} 58. Bxa3 {[%clk
0:00:08.8]} 58... Kxa3 {[%clk 0:00:18.8]} 59. h7 {[%clk 0:00:09.7]} 1-0

[Event "Early-Titled-Tuesday-Blitz-January-23-2024"]
[Site "Chess.com"]
[Date "2024.01.23"]
[Round "8"]
[White "agvega14"]
[Black "NastyaHn"]
[Result "0-1"]
[WhiteElo "2163"]
[BlackElo "2351"]
[TimeControl "180+1"]
[EndTime "9:28:47 PST"]
[Termination "NastyaHn won by resignation"]

1. e4 {[%clk 0:03:00.9]} 1... c5 {[%clk 0:02:12.7]} 2. Nf3 {[%clk 0:02:57.7]}
2... Nc6 {[%clk 0:02:12.3]} 3. c3 {[%clk 0:02:57.5]} 3... Nf6 {[%clk 0:02:11.8]}
4. e5 {[%clk 0:02:57.6]} 4... Nd5 {[%clk 0:02:12.1]} 5. Bc4 {[%clk 0:02:57.2]}
5... Nb6 {[%clk 0:02:11.2]} 6. Bb3 {[%clk 0:02:57]} 6... d6 {[%clk 0:02:11.4]}
7. exd6 {[%clk 0:02:54]} 7... Qxd6 {[%clk 0:02:09.8]} 8. d4 {[%clk 0:02:51.1]}
8... cxd4 {[%clk 0:02:10.2]} 9. cxd4 {[%clk 0:02:49.9]} 9... e6 {[%clk
0:02:10.2]} 10. O-O {[%clk 0:02:49.2]} 10... Be7 {[%clk 0:02:10]} 11. Nc3 {[%clk
0:02:49.7]} 11... O-O {[%clk 0:02:09.2]} 12. Re1 {[%clk 0:02:50.4]} 12... g6
{[%clk 0:02:05.4]} 13. d5 {[%clk 0:02:48.3]} 13... exd5 {[%clk 0:02:04]} 14.
Nxd5 {[%clk 0:02:46.4]} 14... Nxd5 {[%clk 0:02:04.2]} 15. Qxd5 {[%clk
0:02:45.8]} 15... Qxd5 {[%clk 0:02:00]} 16. Bxd5 {[%clk 0:02:46.7]} 16... Bf6
{[%clk 0:02:00.3]} 17. Bh6 {[%clk 0:02:33.1]} 17... Bg7 {[%clk 0:01:57.1]} 18.
Bxg7 {[%clk 0:02:32.1]} 18... Kxg7 {[%clk 0:01:57.4]} 19. h3 {[%clk 0:02:20.4]}
19... Bd7 {[%clk 0:01:57.2]} 20. a3 {[%clk 0:02:16.9]} 20... Rac8 {[%clk
0:01:53.8]} 21. Rad1 {[%clk 0:02:15.8]} 21... Rfd8 {[%clk 0:01:52.2]} 22. Ng5
{[%clk 0:02:11.6]} 22... Be8 {[%clk 0:01:46.2]} 23. Ba2 {[%clk 0:01:20.2]} 23...
h6 {[%clk 0:01:39.4]} 24. Ne4 {[%clk 0:01:17.6]} 24... Rxd1 {[%clk 0:01:33.9]}
25. Rxd1 {[%clk 0:01:17.6]} 25... Rc7 {[%clk 0:01:34.3]} 26. b4 {[%clk
0:01:09.6]} 26... Re7 {[%clk 0:01:34.1]} 27. Nc5 {[%clk 0:01:04.3]} 27... b6
{[%clk 0:01:31.3]} 28. Nd3 {[%clk 0:00:52.9]} 28... Rd7 {[%clk 0:01:17.6]} 29.
Nb2 {[%clk 0:00:49.9]} 29... Rxd1+ {[%clk 0:01:13.7]} 30. Nxd1 {[%clk
0:00:50.8]} 30... Nd4 {[%clk 0:01:14]} 31. Ne3 {[%clk 0:00:48.1]} 31... f5
{[%clk 0:01:10.9]} 32. f4 {[%clk 0:00:45.3]} 32... Ne2+ {[%clk 0:01:07.8]} 33.
Kf2 {[%clk 0:00:43.8]} 33... Nxf4 {[%clk 0:01:08.5]} 34. Bc4 {[%clk 0:00:42]}
34... Bf7 {[%clk 0:01:06.6]} 35. Ba6 {[%clk 0:00:40]} 35... Ne6 {[%clk
0:01:02.6]} 36. Bb7 {[%clk 0:00:37.9]} 36... Nd4 {[%clk 0:01:01.9]} 37. a4
{[%clk 0:00:33.8]} 37... Kf6 {[%clk 0:01:00.9]} 38. a5 {[%clk 0:00:33.8]} 38...
Ke5 {[%clk 0:00:56.1]} 39. axb6 {[%clk 0:00:31.8]} 39... axb6 {[%clk 0:00:55.7]}
40. h4 {[%clk 0:00:28.8]} 40... g5 {[%clk 0:00:44.5]} 41. hxg5 {[%clk
0:00:26.7]} 41... hxg5 {[%clk 0:00:45.1]} 42. g3 {[%clk 0:00:24.4]} 42... Be6
{[%clk 0:00:31.5]} 43. Ba8 {[%clk 0:00:21.3]} 43... f4 {[%clk 0:00:27.7]} 44.
gxf4+ {[%clk 0:00:21.2]} 44... gxf4 {[%clk 0:00:27.9]} 45. Ng2 {[%clk
0:00:20.1]} 45... Nc2 {[%clk 0:00:25.1]} 46. b5 {[%clk 0:00:18.3]} 46... Nd4
{[%clk 0:00:25]} 47. Nh4 {[%clk 0:00:15.1]} 47... Nxb5 {[%clk 0:00:21.7]} 48.
Ng6+ {[%clk 0:00:15.3]} 48... Kf5 {[%clk 0:00:19.4]} 49. Ne7+ {[%clk 0:00:15.4]}
49... Kf6 {[%clk 0:00:18.6]} 50. Nd5+ {[%clk 0:00:08.9]} 50... Bxd5 {[%clk
0:00:17.9]} 51. Bxd5 {[%clk 0:00:09.8]} 51... Ke5 {[%clk 0:00:16.4]} 52. Bc6
{[%clk 0:00:08.8]} 52... Nd4 {[%clk 0:00:16.4]} 53. Ba4 {[%clk 0:00:07.8]} 53...
b5 {[%clk 0:00:16.4]} 54. Bd1 {[%clk 0:00:07.4]} 54... b4 {[%clk 0:00:16.9]} 55.
Kg2 {[%clk 0:00:04.1]} 55... b3 {[%clk 0:00:16.7]} 56. Bxb3 {[%clk 0:00:04.7]}
56... Nxb3 {[%clk 0:00:16.4]} 57. Kf3 {[%clk 0:00:05.6]} 57... Nd4+ {[%clk
0:00:16.1]} 58. Kf2 {[%clk 0:00:05.4]} 58... Ke4 {[%clk 0:00:16.8]} 0-1